[Event "Titled Tuesday Blitz August 22 Early 2023"]
[White "Prudnykova, Olga"]
[Black "Kleiman, Jake"]
[WhiteFideId "14121093"]
[BlackFideId "2020041"]
[WhiteElo "2381"]
[BlackElo "2656"]
[Result "0-1"]
[Round "9"]
[TimeControl "180+1"]
[Date "2023.08.22"]
[WhiteClock "0:00:02"]
[BlackClock "0:00:26"]
[Board "132"]

1. e4 {[%clk 0:02:58]}  e5 {[%clk 0:02:54]} 2. d4 {[%clk 0:02:57]}  exd4 {[%clk 0:02:53]} 3. Qxd4 {[%clk 0:02:58]}  Nc6 {[%clk 0:02:51]} 4. Qc4 {[%clk 0:02:58]}  Nf6 {[%clk 0:02:52]} 5. Nc3 {[%clk 0:02:58]}  Bb4 {[%clk 0:02:49]} 6. Bg5 {[%clk 0:02:57]}  O-O {[%clk 0:02:34]} 7. Ne2 {[%clk 0:02:57]}  d5 {[%clk 0:02:22]} 8. Bxf6 {[%clk 0:02:24]}  dxc4 {[%clk 0:02:21]} 9. Bxd8 {[%clk 0:02:23]}  Rxd8 {[%clk 0:02:22]} 10. a3 {[%clk 0:02:23]}  Bc5 {[%clk 0:02:16]} 11. f3 {[%clk 0:02:19]}  Be3 {[%clk 0:01:59]} 12. Nd5 {[%clk 0:02:13]}  Bb6 {[%clk 0:01:59]} 13. Nec3 {[%clk 0:02:08]}  Ne5 {[%clk 0:01:55]} 14. O-O-O {[%clk 0:02:02]}  Be6 {[%clk 0:01:43]} 15. Be2 {[%clk 0:01:47]}  c6 {[%clk 0:01:36]} 16. Nxb6 {[%clk 0:01:43]}  axb6 {[%clk 0:01:37]} 17. h3 {[%clk 0:01:32]}  g5 {[%clk 0:01:33]} 18. h4 {[%clk 0:01:31]}  Rxd1+ {[%clk 0:01:23]} 19. Nxd1 {[%clk 0:01:30]}  h6 {[%clk 0:01:24]} 20. hxg5 {[%clk 0:01:29]}  hxg5 {[%clk 0:01:24]} 21. Rh5 {[%clk 0:01:28]}  f6 {[%clk 0:01:22]} 22. c3 {[%clk 0:01:19]}  Kg7 {[%clk 0:01:20]} 23. Ne3 {[%clk 0:01:18]}  b5 {[%clk 0:01:19]} 24. g3 {[%clk 0:01:13]}  Ng6 {[%clk 0:01:09]} 25. Ng2 {[%clk 0:00:56]}  Bf7 {[%clk 0:00:55]} 26. Rh1 {[%clk 0:00:54]}  Re8 {[%clk 0:00:53]} 27. Kd2 {[%clk 0:00:52]}  Re7 {[%clk 0:00:50]} 28. Bd1 {[%clk 0:00:44]}  Ne5 {[%clk 0:00:45]} 29. Rf1 {[%clk 0:00:31]}  Nd3 {[%clk 0:00:43]} 30. Bc2 {[%clk 0:00:31]}  Nxb2 {[%clk 0:00:42]} 31. g4 {[%clk 0:00:23]}  Rd7+ {[%clk 0:00:41]} 32. Kc1 {[%clk 0:00:22]}  Nd3+ {[%clk 0:00:41]} 33. Bxd3 {[%clk 0:00:22]}  Rxd3 {[%clk 0:00:41]} 34. Kc2 {[%clk 0:00:23]}  Be6 {[%clk 0:00:40]} 35. Rf2 {[%clk 0:00:21]}  Kg6 {[%clk 0:00:39]} 36. Ne1 {[%clk 0:00:21]}  Rd8 {[%clk 0:00:38]} 37. Ng2 {[%clk 0:00:20]}  b6 {[%clk 0:00:34]} 38. Ne3 {[%clk 0:00:20]}  Rd3 {[%clk 0:00:32]} 39. Nd1 {[%clk 0:00:16]}  c5 {[%clk 0:00:31]} 40. Nb2 {[%clk 0:00:16]}  Rd8 {[%clk 0:00:30]} 41. Rd2 {[%clk 0:00:15]}  Rxd2+ {[%clk 0:00:29]} 42. Kxd2 {[%clk 0:00:16]}  Kf7 {[%clk 0:00:30]} 43. Ke3 {[%clk 0:00:16]}  Ke7 {[%clk 0:00:30]} 44. Nd1 {[%clk 0:00:13]}  Kd6 {[%clk 0:00:31]} 45. Nf2 {[%clk 0:00:13]}  Ke5 {[%clk 0:00:30]} 46. Nh1 {[%clk 0:00:11]}  Bf7 {[%clk 0:00:29]} 47. Ng3 {[%clk 0:00:11]}  Bg6 {[%clk 0:00:30]} 48. Ne2 {[%clk 0:00:11]}  Kd6 {[%clk 0:00:30]} 49. Ng3 {[%clk 0:00:10]}  Kc6 {[%clk 0:00:31]} 50. f4 {[%clk 0:00:09]}  gxf4+ {[%clk 0:00:28]} 51. Kxf4 {[%clk 0:00:10]}  b4 {[%clk 0:00:28]} 52. axb4 {[%clk 0:00:10]}  cxb4 {[%clk 0:00:29]} 53. Nf1 {[%clk 0:00:04]}  bxc3 {[%clk 0:00:27]} 54. Ke3 {[%clk 0:00:04]}  Kc5 {[%clk 0:00:27]} 55. g5 {[%clk 0:00:03]}  fxg5 {[%clk 0:00:26]} 56. e5 {[%clk 0:00:03]}  b5 {[%clk 0:00:27]} 57. e6 {[%clk 0:00:03]}  b4 {[%clk 0:00:27]} 58. e7 {[%clk 0:00:03]}  b3 {[%clk 0:00:27]} 59. Ke2 {[%clk 0:00:03]}  b2 {[%clk 0:00:27]} 60. Ne3 {[%clk 0:00:03]}  b1=Q {[%clk 0:00:27]} 61. Kf3 {[%clk 0:00:03]}  Qd3 {[%clk 0:00:27]} 62. e8=Q {[%clk 0:00:02]}  Bxe8 {[%clk 0:00:26]} 0-1


[Site "https://www.chess.com"]

[Event "Titled Tuesday Blitz August 22 Early 2023"]
[White "Shuvalova, Polina"]
[Black "Ovezdurdyyeva, Jemal"]
[WhiteFideId "24171760"]
[BlackFideId "14001888"]
[WhiteElo "2611"]
[BlackElo "2376"]
[Result "1-0"]
[Round "9"]
[TimeControl "180+1"]
[Date "2023.08.22"]
[WhiteClock "0:00:45"]
[BlackClock "0:00:00"]
[Board "135"]

1. b3 {[%clk 0:03:00]}  Nf6 {[%clk 0:02:57]} 2. Bb2 {[%clk 0:03:01]}  g6 {[%clk 0:02:57]} 3. Nf3 {[%clk 0:03:01]}  Bg7 {[%clk 0:02:58]} 4. e4 {[%clk 0:03:01]}  d6 {[%clk 0:02:56]} 5. d3 {[%clk 0:03:01]}  O-O {[%clk 0:02:56]} 6. Nbd2 {[%clk 0:03:02]}  e5 {[%clk 0:02:55]} 7. Be2 {[%clk 0:03:02]}  c5 {[%clk 0:02:51]} 8. O-O {[%clk 0:03:01]}  Nc6 {[%clk 0:02:51]} 9. a3 {[%clk 0:02:58]}  Be6 {[%clk 0:02:51]} 10. h3 {[%clk 0:02:57]}  Ne8 {[%clk 0:02:50]} 11. Nc4 {[%clk 0:02:55]}  f5 {[%clk 0:02:46]} 12. exf5 {[%clk 0:02:53]}  gxf5 {[%clk 0:02:45]} 13. Qd2 {[%clk 0:02:51]}  h6 {[%clk 0:02:39]} 14. Rae1 {[%clk 0:02:46]}  b5 {[%clk 0:02:28]} 15. Ne3 {[%clk 0:02:43]}  f4 {[%clk 0:02:27]} 16. Ng4 {[%clk 0:02:36]}  Nf6 {[%clk 0:02:26]} 17. Nfh2 {[%clk 0:02:34]}  Qe8 {[%clk 0:02:05]} 18. Nxf6+ {[%clk 0:02:30]}  Rxf6 {[%clk 0:02:06]} 19. Bg4 {[%clk 0:02:30]}  Bxg4 {[%clk 0:01:50]} 20. Nxg4 {[%clk 0:02:29]}  Rg6 {[%clk 0:01:49]} 21. Kh1 {[%clk 0:02:25]}  Qf7 {[%clk 0:01:41]} 22. Qe2 {[%clk 0:02:24]}  Rf8 {[%clk 0:01:39]} 23. Qe4 {[%clk 0:02:22]}  Nd8 {[%clk 0:01:24]} 24. a4 {[%clk 0:02:05]}  bxa4 {[%clk 0:01:18]} 25. bxa4 {[%clk 0:02:03]}  Ne6 {[%clk 0:01:18]} 26. Qd5 {[%clk 0:02:01]}  f3 {[%clk 0:01:02]} 27. g3 {[%clk 0:01:57]}  Qf5 {[%clk 0:00:54]} 28. Re3 {[%clk 0:01:23]}  h5 {[%clk 0:00:42]} 29. Nh2 {[%clk 0:01:22]}  Qxh3 {[%clk 0:00:32]} 30. Rxf3 {[%clk 0:01:22]}  Rxf3 {[%clk 0:00:20]} 31. Qxf3 {[%clk 0:01:22]}  Ng5 {[%clk 0:00:18]} 32. Qd5+ {[%clk 0:01:16]}  Kh7 {[%clk 0:00:18]} 33. Bc1 {[%clk 0:01:16]}  h4 {[%clk 0:00:17]} 34. Bxg5 {[%clk 0:01:13]}  Rxg5 {[%clk 0:00:18]} 35. Qe4+ {[%clk 0:01:13]}  Kg8 {[%clk 0:00:12]} 36. Qxh4 {[%clk 0:01:08]}  Qxh4 {[%clk 0:00:12]} 37. gxh4 {[%clk 0:01:08]}  Rf5 {[%clk 0:00:13]} 38. h5 {[%clk 0:01:03]}  Rxh5 {[%clk 0:00:11]} 39. Kg2 {[%clk 0:01:03]}  Rh4 {[%clk 0:00:11]} 40. Ra1 {[%clk 0:00:59]}  Kf7 {[%clk 0:00:11]} 41. Ra2 {[%clk 0:00:53]}  Ke6 {[%clk 0:00:10]} 42. Nf3 {[%clk 0:00:53]}  Rg4+ {[%clk 0:00:10]} 43. Kf1 {[%clk 0:00:53]}  Kd5 {[%clk 0:00:09]} 44. Nd2 {[%clk 0:00:51]}  Kd4 {[%clk 0:00:08]} 45. Ke2 {[%clk 0:00:50]}  Kc3 {[%clk 0:00:08]} 46. Ne4+ {[%clk 0:00:50]}  Kb4 {[%clk 0:00:08]} 47. Nxd6 {[%clk 0:00:48]}  Rg6 {[%clk 0:00:07]} 48. Ne4 {[%clk 0:00:47]}  Ra6 {[%clk 0:00:07]} 49. Rb2+ {[%clk 0:00:45]}  Ka3 {[%clk 0:00:00]} 50. Rb7 {[%clk 0:00:45]} 1-0


[Site "https://www.chess.com"]

[Event "Titled Tuesday Blitz August 22 Early 2023"]
[White "Bilan, Danila"]
[Black "Yuruultei Batbaatar"]
[WhiteFideId "24161918"]
[BlackFideId "4905962"]
[WhiteElo "2499"]
[BlackElo "2372"]
[Result "1-0"]
[Round "9"]
[TimeControl "180+1"]
[Date "2023.08.22"]
[WhiteClock "0:00:33"]
[BlackClock "0:00:48"]
[Board "136"]

1. d4 {[%clk 0:02:53]}  Nf6 {[%clk 0:02:59]} 2. Nf3 {[%clk 0:02:54]}  g6 {[%clk 0:02:59]} 3. Bg5 {[%clk 0:02:53]}  Bg7 {[%clk 0:02:59]} 4. c3 {[%clk 0:02:54]}  O-O {[%clk 0:03:00]} 5. Nbd2 {[%clk 0:02:54]}  d5 {[%clk 0:02:58]} 6. e3 {[%clk 0:02:54]}  c5 {[%clk 0:02:57]} 7. Bd3 {[%clk 0:02:54]}  Nc6 {[%clk 0:02:55]} 8. O-O {[%clk 0:02:54]}  c4 {[%clk 0:02:56]} 9. Bc2 {[%clk 0:02:54]}  b5 {[%clk 0:02:55]} 10. e4 {[%clk 0:02:54]}  a5 {[%clk 0:02:51]} 11. a3 {[%clk 0:02:28]}  h6 {[%clk 0:02:48]} 12. Bh4 {[%clk 0:02:26]}  Bg4 {[%clk 0:02:41]} 13. h3 {[%clk 0:02:21]}  Be6 {[%clk 0:02:39]} 14. Re1 {[%clk 0:02:11]}  Rb8 {[%clk 0:02:31]} 15. exd5 {[%clk 0:01:46]}  Nxd5 {[%clk 0:02:23]} 16. Bxg6 {[%clk 0:01:25]}  Bxh3 {[%clk 0:02:13]} 17. Bb1 {[%clk 0:01:04]}  Bg4 {[%clk 0:02:07]} 18. Qc2 {[%clk 0:00:59]}  f5 {[%clk 0:01:59]} 19. Re6 {[%clk 0:00:57]}  Qd7 {[%clk 0:01:21]} 20. Rg6 {[%clk 0:00:54]}  Kh7 {[%clk 0:01:20]} 21. Rxg4 {[%clk 0:00:53]}  b4 {[%clk 0:01:17]} 22. axb4 {[%clk 0:00:48]}  axb4 {[%clk 0:01:15]} 23. Rg3 {[%clk 0:00:37]}  bxc3 {[%clk 0:01:04]} 24. bxc3 {[%clk 0:00:38]}  Kh8 {[%clk 0:01:02]} 25. Nxc4 {[%clk 0:00:33]}  Rfc8 {[%clk 0:00:48]} 1-0


[Site "https://www.chess.com"]

[Event "Titled Tuesday Blitz August 22 Early 2023"]
[White "Goffredo_Fofi"]
[Black "Tanwir, Furqan"]
[BlackFideId "2023962"]
[WhiteElo "2484"]
[BlackElo "2368"]
[Result "1-0"]
[Round "9"]
[TimeControl "180+1"]
[Date "2023.08.22"]
[WhiteClock "0:00:05"]
[BlackClock "0:00:11"]
[Board "137"]

1. d4 {[%clk 0:03:00]}  d5 {[%clk 0:02:48]} 2. Nf3 {[%clk 0:03:00]}  Nf6 {[%clk 0:02:47]} 3. Bf4 {[%clk 0:03:00]}  e6 {[%clk 0:02:46]} 4. e3 {[%clk 0:03:01]}  c5 {[%clk 0:02:45]} 5. c3 {[%clk 0:03:01]}  Nc6 {[%clk 0:02:45]} 6. Nbd2 {[%clk 0:03:01]}  Qb6 {[%clk 0:02:42]} 7. Rb1 {[%clk 0:02:59]}  Nh5 {[%clk 0:02:40]} 8. Be5 {[%clk 0:02:55]}  Nxe5 {[%clk 0:02:36]} 9. Nxe5 {[%clk 0:02:56]}  Nf6 {[%clk 0:02:32]} 10. Bd3 {[%clk 0:02:45]}  Bd6 {[%clk 0:02:30]} 11. f4 {[%clk 0:02:42]}  Qc7 {[%clk 0:02:27]} 12. O-O {[%clk 0:02:42]}  a6 {[%clk 0:02:26]} 13. Rc1 {[%clk 0:02:36]}  c4 {[%clk 0:02:24]} 14. Bc2 {[%clk 0:02:36]}  b5 {[%clk 0:02:24]} 15. e4 {[%clk 0:02:31]}  Bb7 {[%clk 0:02:19]} 16. Nxf7 {[%clk 0:02:27]}  Bxf4 {[%clk 0:02:14]} 17. Nxh8 {[%clk 0:02:21]}  dxe4 {[%clk 0:01:56]} 18. Rxf4 {[%clk 0:01:13]}  Qxf4 {[%clk 0:01:54]} 19. Qe2 {[%clk 0:01:14]}  Ng4 {[%clk 0:01:46]} 20. g3 {[%clk 0:01:14]}  Qe3+ {[%clk 0:01:28]} 21. Qxe3 {[%clk 0:01:14]}  Nxe3 {[%clk 0:01:28]} 22. Bxe4 {[%clk 0:01:12]}  Bxe4 {[%clk 0:01:27]} 23. Nxe4 {[%clk 0:01:13]}  Ke7 {[%clk 0:01:27]} 24. Re1 {[%clk 0:01:05]}  Nd5 {[%clk 0:01:05]} 25. Ng5 {[%clk 0:00:57]}  Rxh8 {[%clk 0:01:06]} 26. Rxe6+ {[%clk 0:00:56]}  Kd7 {[%clk 0:01:06]} 27. Rxa6 {[%clk 0:00:56]}  b4 {[%clk 0:01:05]} 28. Ra7+ {[%clk 0:00:54]}  Kc6 {[%clk 0:01:03]} 29. cxb4 {[%clk 0:00:36]}  Nxb4 {[%clk 0:01:04]} 30. Nf7 {[%clk 0:00:27]}  Re8 {[%clk 0:00:56]} 31. a4 {[%clk 0:00:26]}  Nd3 {[%clk 0:00:52]} 32. a5 {[%clk 0:00:22]}  Nxb2 {[%clk 0:00:50]} 33. Ne5+ {[%clk 0:00:21]}  Kb5 {[%clk 0:00:48]} 34. Rb7+ {[%clk 0:00:20]}  Kxa5 {[%clk 0:00:48]} 35. Rxb2 {[%clk 0:00:21]}  c3 {[%clk 0:00:43]} 36. Rc2 {[%clk 0:00:20]}  Kb4 {[%clk 0:00:42]} 37. Nd3+ {[%clk 0:00:12]}  Kb3 {[%clk 0:00:41]} 38. Rc1 {[%clk 0:00:13]}  Re3 {[%clk 0:00:38]} 39. Nf2 {[%clk 0:00:09]}  Re2 {[%clk 0:00:33]} 40. Kf1 {[%clk 0:00:09]}  Rd2 {[%clk 0:00:31]} 41. Rxc3+ {[%clk 0:00:07]}  Kxc3 {[%clk 0:00:25]} 42. Ne4+ {[%clk 0:00:07]}  Kxd4 {[%clk 0:00:23]} 43. Nxd2 {[%clk 0:00:08]}  Ke3 {[%clk 0:00:22]} 44. Nc4+ {[%clk 0:00:08]}  Kf3 {[%clk 0:00:22]} 45. Nd6 {[%clk 0:00:07]}  g6 {[%clk 0:00:21]} 46. Nf7 {[%clk 0:00:06]}  h5 {[%clk 0:00:11]} 47. Ne5+ {[%clk 0:00:05]} 1-0


[Site "https://www.chess.com"]

[Event "Titled Tuesday Blitz August 22 Early 2023"]
[White "Okike, David"]
[Black "slidingknight2775"]
[WhiteFideId "8500134"]
[WhiteElo "2362"]
[BlackElo "2479"]
[Result "0-1"]
[Round "9"]
[TimeControl "180+1"]
[Date "2023.08.22"]
[WhiteClock "0:02:11"]
[BlackClock "0:01:45"]
[Board "138"]

1. e4 {[%clk 0:03:00]}  c6 {[%clk 0:02:59]} 2. d4 {[%clk 0:03:00]}  d5 {[%clk 0:03:00]} 3. e5 {[%clk 0:03:00]}  Bf5 {[%clk 0:03:00]} 4. Nf3 {[%clk 0:03:00]}  e6 {[%clk 0:03:01]} 5. Be2 {[%clk 0:03:00]}  Bb4+ {[%clk 0:02:55]} 6. c3 {[%clk 0:02:59]}  Ba5 {[%clk 0:02:55]} 7. O-O {[%clk 0:02:59]}  Nd7 {[%clk 0:02:55]} 8. h3 {[%clk 0:02:57]}  Ne7 {[%clk 0:02:51]} 9. Bf4 {[%clk 0:02:56]}  Bc7 {[%clk 0:02:51]} 10. Bh2 {[%clk 0:02:54]}  O-O {[%clk 0:02:50]} 11. Nbd2 {[%clk 0:02:53]}  h6 {[%clk 0:02:49]} 12. b4 {[%clk 0:02:52]}  Bh7 {[%clk 0:02:45]} 13. a4 {[%clk 0:02:52]}  Ng6 {[%clk 0:02:38]} 14. a5 {[%clk 0:02:51]}  f6 {[%clk 0:02:35]} 15. exf6 {[%clk 0:02:49]}  Bxh2+ {[%clk 0:02:34]} 16. Nxh2 {[%clk 0:02:48]}  Nxf6 {[%clk 0:02:32]} 17. f4 {[%clk 0:02:48]}  Qd6 {[%clk 0:02:21]} 18. g3 {[%clk 0:02:47]}  Ne7 {[%clk 0:02:16]} 19. Nhf3 {[%clk 0:02:44]}  Nf5 {[%clk 0:02:15]} 20. Kh2 {[%clk 0:02:43]}  Ne3 {[%clk 0:02:15]} 21. Qc1 {[%clk 0:02:43]}  Nxf1+ {[%clk 0:02:15]} 22. Qxf1 {[%clk 0:02:43]}  Ne4 {[%clk 0:02:14]} 23. Nxe4 {[%clk 0:02:41]}  Bxe4 {[%clk 0:02:14]} 24. Ne5 {[%clk 0:02:41]}  g5 {[%clk 0:02:08]} 25. Bg4 {[%clk 0:02:38]}  Rf6 {[%clk 0:02:05]} 26. Bh5 {[%clk 0:02:24]}  Raf8 {[%clk 0:02:00]} 27. Ng4 {[%clk 0:02:24]}  gxf4 {[%clk 0:01:51]} 28. Nxf6+ {[%clk 0:02:24]}  Rxf6 {[%clk 0:01:52]} 29. g4 {[%clk 0:02:21]}  f3+ {[%clk 0:01:48]} 30. Kg1 {[%clk 0:02:11]}  Qg3+ {[%clk 0:01:45]} 0-1


[Site "https://www.chess.com"]

[Event "Titled Tuesday Blitz August 22 Early 2023"]
[White "Albertini, Luca"]
[Black "Czerw, Dawid"]
[WhiteFideId "847038"]
[BlackFideId "1145746"]
[WhiteElo "2354"]
[BlackElo "2476"]
[Result "1-0"]
[Round "9"]
[TimeControl "180+1"]
[Date "2023.08.22"]
[WhiteClock "0:01:12"]
[BlackClock "0:01:12"]
[Board "139"]

1. d4 {[%clk 0:03:00]}  c5 {[%clk 0:03:00]} 2. d5 {[%clk 0:03:00]}  e5 {[%clk 0:03:00]} 3. c4 {[%clk 0:02:59]}  d6 {[%clk 0:03:00]} 4. e4 {[%clk 0:02:59]}  Be7 {[%clk 0:03:01]} 5. Nc3 {[%clk 0:02:59]}  Bg5 {[%clk 0:03:01]} 6. g3 {[%clk 0:02:58]}  Bxc1 {[%clk 0:03:00]} 7. Qxc1 {[%clk 0:02:58]}  Nh6 {[%clk 0:03:01]} 8. Bg2 {[%clk 0:02:59]}  O-O {[%clk 0:03:01]} 9. Nge2 {[%clk 0:02:59]}  a6 {[%clk 0:03:02]} 10. O-O {[%clk 0:02:59]}  Nd7 {[%clk 0:03:02]} 11. a4 {[%clk 0:02:59]}  f5 {[%clk 0:03:03]} 12. f4 {[%clk 0:02:54]}  Qe7 {[%clk 0:02:57]} 13. Qd2 {[%clk 0:02:43]}  Nf6 {[%clk 0:02:54]} 14. Rae1 {[%clk 0:02:38]}  fxe4 {[%clk 0:02:50]} 15. Nxe4 {[%clk 0:02:36]}  Nxe4 {[%clk 0:02:50]} 16. Bxe4 {[%clk 0:02:35]}  Bh3 {[%clk 0:02:51]} 17. Bg2 {[%clk 0:02:35]}  Bxg2 {[%clk 0:02:51]} 18. Kxg2 {[%clk 0:02:36]}  Rae8 {[%clk 0:02:45]} 19. Nc3 {[%clk 0:02:33]}  Qd7 {[%clk 0:02:36]} 20. fxe5 {[%clk 0:02:32]}  Rxf1 {[%clk 0:02:35]} 21. e6 {[%clk 0:02:07]}  Qd8 {[%clk 0:02:07]} 22. Rxf1 {[%clk 0:02:04]}  Ng4 {[%clk 0:02:07]} 23. Ne4 {[%clk 0:01:58]}  Ne5 {[%clk 0:02:06]} 24. Qf4 {[%clk 0:01:52]}  h6 {[%clk 0:01:55]} 25. Nxc5 {[%clk 0:01:45]}  Qb6 {[%clk 0:01:52]} 26. Nd7 {[%clk 0:01:40]}  Qxb2+ {[%clk 0:01:34]} 27. Rf2 {[%clk 0:01:37]}  Nxd7 {[%clk 0:01:20]} 28. Qf7+ {[%clk 0:01:34]}  Kh7 {[%clk 0:01:12]} 29. exd7 {[%clk 0:01:12]} 1-0


[Site "https://www.chess.com"]

[Event "Titled Tuesday Blitz August 22 Early 2023"]
[White "Shuvalov, Evgenij"]
[Black "Battlecruiser_Operational"]
[WhiteFideId "4187237"]
[WhiteElo "2460"]
[BlackElo "2322"]
[Result "1-0"]
[Round "9"]
[TimeControl "180+1"]
[Date "2023.08.22"]
[WhiteClock "0:00:47"]
[BlackClock "0:00:09"]
[Board "141"]

1. d4 {[%clk 0:03:00]}  e6 {[%clk 0:02:49]} 2. c4 {[%clk 0:03:00]}  f5 {[%clk 0:02:46]} 3. Nc3 {[%clk 0:02:56]}  Nf6 {[%clk 0:02:46]} 4. g3 {[%clk 0:02:54]}  d5 {[%clk 0:02:36]} 5. Bg2 {[%clk 0:02:54]}  c6 {[%clk 0:02:36]} 6. Nh3 {[%clk 0:02:54]}  Bd6 {[%clk 0:02:36]} 7. O-O {[%clk 0:02:53]}  O-O {[%clk 0:02:36]} 8. Nf4 {[%clk 0:02:53]}  Qe7 {[%clk 0:02:31]} 9. b3 {[%clk 0:02:48]}  Nbd7 {[%clk 0:02:25]} 10. a4 {[%clk 0:02:43]}  a5 {[%clk 0:02:21]} 11. Bb2 {[%clk 0:02:42]}  Kh8 {[%clk 0:02:20]} 12. Qc1 {[%clk 0:02:41]}  b6 {[%clk 0:02:17]} 13. Ba3 {[%clk 0:02:41]}  Bxa3 {[%clk 0:02:12]} 14. Qxa3 {[%clk 0:02:41]}  Qxa3 {[%clk 0:02:09]} 15. Rxa3 {[%clk 0:02:42]}  Re8 {[%clk 0:02:05]} 16. e3 {[%clk 0:02:39]}  Ba6 {[%clk 0:02:03]} 17. Rc1 {[%clk 0:02:34]}  g5 {[%clk 0:01:58]} 18. Nfe2 {[%clk 0:02:21]}  Rac8 {[%clk 0:01:54]} 19. cxd5 {[%clk 0:02:12]}  exd5 {[%clk 0:01:50]} 20. Ra2 {[%clk 0:02:06]}  Kg7 {[%clk 0:01:46]} 21. Nb1 {[%clk 0:02:01]}  c5 {[%clk 0:01:38]} 22. Nbc3 {[%clk 0:01:55]}  c4 {[%clk 0:01:27]} 23. bxc4 {[%clk 0:01:52]}  dxc4 {[%clk 0:01:19]} 24. Rb2 {[%clk 0:01:51]}  Kf7 {[%clk 0:00:54]} 25. Nd5 {[%clk 0:01:46]}  Re6 {[%clk 0:00:43]} 26. Nec3 {[%clk 0:01:44]}  Rd6 {[%clk 0:00:27]} 27. Rcb1 {[%clk 0:01:42]}  Rb8 {[%clk 0:00:23]} 28. Nc7 {[%clk 0:01:32]}  Bb7 {[%clk 0:00:19]} 29. Bf1 {[%clk 0:01:22]}  Rc6 {[%clk 0:00:15]} 30. N7b5 {[%clk 0:01:18]}  Ba6 {[%clk 0:00:14]} 31. Bg2 {[%clk 0:01:06]}  Re6 {[%clk 0:00:14]} 32. Nc7 {[%clk 0:01:05]}  Bb7 {[%clk 0:00:12]} 33. Nxe6 {[%clk 0:01:04]}  Kxe6 {[%clk 0:00:13]} 34. Rb5 {[%clk 0:00:58]}  Ba6 {[%clk 0:00:11]} 35. R5b2 {[%clk 0:00:55]}  Kd6 {[%clk 0:00:11]} 36. f3 {[%clk 0:00:52]}  Nd5 {[%clk 0:00:11]} 37. Nxd5 {[%clk 0:00:50]}  Kxd5 {[%clk 0:00:11]} 38. f4+ {[%clk 0:00:49]}  Kd6 {[%clk 0:00:12]} 39. fxg5 {[%clk 0:00:49]}  Rg8 {[%clk 0:00:12]} 40. h4 {[%clk 0:00:48]}  h6 {[%clk 0:00:13]} 41. Rxb6+ {[%clk 0:00:46]}  Nxb6 {[%clk 0:00:09]} 42. Rxb6+ {[%clk 0:00:47]}  Kc7 {[%clk 0:00:09]} 43. Rxa6 {[%clk 0:00:47]} 1-0


[Site "https://www.chess.com"]

[Event "Titled Tuesday Blitz August 22 Early 2023"]
[White "Omariev, Maksim"]
[Black "Coelho, Ramyres Santana"]
[WhiteFideId "4193423"]
[BlackFideId "2120690"]
[WhiteElo "2457"]
[BlackElo "2320"]
[Result "0-1"]
[Round "9"]
[TimeControl "180+1"]
[Date "2023.08.22"]
[WhiteClock "0:00:10"]
[BlackClock "0:00:16"]
[Board "142"]

1. g4 {[%clk 0:03:00]}  e5 {[%clk 0:02:52]} 2. Bg2 {[%clk 0:03:01]}  d5 {[%clk 0:02:51]} 3. d4 {[%clk 0:02:56]}  e4 {[%clk 0:02:49]} 4. g5 {[%clk 0:02:54]}  Be7 {[%clk 0:02:46]} 5. h4 {[%clk 0:02:53]}  h6 {[%clk 0:02:45]} 6. Qd2 {[%clk 0:02:34]}  hxg5 {[%clk 0:02:44]} 7. hxg5 {[%clk 0:02:35]}  Rxh1 {[%clk 0:02:44]} 8. Bxh1 {[%clk 0:02:36]}  g6 {[%clk 0:02:38]} 9. Nc3 {[%clk 0:02:33]}  Nc6 {[%clk 0:02:35]} 10. f3 {[%clk 0:02:24]}  Qd6 {[%clk 0:02:24]} 11. f4 {[%clk 0:01:49]}  Bf5 {[%clk 0:02:13]} 12. e3 {[%clk 0:01:44]}  O-O-O {[%clk 0:02:12]} 13. Nge2 {[%clk 0:01:33]}  f6 {[%clk 0:02:11]} 14. gxf6 {[%clk 0:00:08]}  Nxf6 {[%clk 0:02:12]} 15. b3 {[%clk 0:00:07]}  Ng4 {[%clk 0:02:08]} 16. Ng3 {[%clk 0:00:07]}  g5 {[%clk 0:02:08]} 17. Nd1 {[%clk 0:00:06]}  Qg6 {[%clk 0:02:05]} 18. Nxf5 {[%clk 0:00:06]}  Qxf5 {[%clk 0:02:05]} 19. Bb2 {[%clk 0:00:06]}  gxf4 {[%clk 0:02:05]} 20. exf4 {[%clk 0:00:07]}  e3 {[%clk 0:01:57]} 21. Nxe3 {[%clk 0:00:07]}  Qxf4 {[%clk 0:01:52]} 22. Nxg4 {[%clk 0:00:06]}  Qxg4 {[%clk 0:01:48]} 23. Qe2 {[%clk 0:00:07]}  Bh4+ {[%clk 0:01:42]} 24. Kd2 {[%clk 0:00:07]}  Bg5+ {[%clk 0:01:33]} 25. Kd1 {[%clk 0:00:07]}  Qg1+ {[%clk 0:01:26]} 26. Qe1 {[%clk 0:00:07]}  Qg4+ {[%clk 0:01:16]} 27. Qe2 {[%clk 0:00:07]}  Qf4 {[%clk 0:01:04]} 28. c3 {[%clk 0:00:07]}  Rh8 {[%clk 0:00:57]} 29. Kc2 {[%clk 0:00:07]}  Rh2 {[%clk 0:00:56]} 30. Bg2 {[%clk 0:00:08]}  Qe4+ {[%clk 0:00:39]} 31. Qxe4 {[%clk 0:00:03]}  dxe4 {[%clk 0:00:36]} 32. Rg1 {[%clk 0:00:04]}  Be3 {[%clk 0:00:35]} 33. Re1 {[%clk 0:00:03]}  Rxg2+ {[%clk 0:00:34]} 34. Kb1 {[%clk 0:00:04]}  Rg1 {[%clk 0:00:33]} 35. Rxg1 {[%clk 0:00:03]}  Bxg1 {[%clk 0:00:34]} 36. d5 {[%clk 0:00:04]}  Ne5 {[%clk 0:00:32]} 37. c4 {[%clk 0:00:05]}  Nd3 {[%clk 0:00:32]} 38. Bf6 {[%clk 0:00:05]}  e3 {[%clk 0:00:32]} 39. Kc2 {[%clk 0:00:04]}  e2 {[%clk 0:00:29]} 40. Bc3 {[%clk 0:00:05]}  e1=Q {[%clk 0:00:27]} 41. Bxe1 {[%clk 0:00:06]}  Nxe1+ {[%clk 0:00:28]} 42. Kc3 {[%clk 0:00:06]}  Kd7 {[%clk 0:00:27]} 43. b4 {[%clk 0:00:06]}  Ng2 {[%clk 0:00:27]} 44. c5 {[%clk 0:00:07]}  Nf4 {[%clk 0:00:27]} 45. Kc4 {[%clk 0:00:07]}  Bf2 {[%clk 0:00:24]} 46. a4 {[%clk 0:00:07]}  Be1 {[%clk 0:00:24]} 47. a5 {[%clk 0:00:07]}  Ng6 {[%clk 0:00:23]} 48. Kb5 {[%clk 0:00:05]}  Nf4 {[%clk 0:00:20]} 49. c6+ {[%clk 0:00:05]}  bxc6+ {[%clk 0:00:17]} 50. dxc6+ {[%clk 0:00:06]}  Kd6 {[%clk 0:00:17]} 51. Ka6 {[%clk 0:00:04]}  Bxb4 {[%clk 0:00:16]} 52. Kb7 {[%clk 0:00:01]}  Bxa5 {[%clk 0:00:15]} 53. Ka6 {[%clk 0:00:01]}  Kxc6 {[%clk 0:00:15]} 54. Kxa7 {[%clk 0:00:01]}  Kc5 {[%clk 0:00:14]} 55. Kb8 {[%clk 0:00:02]}  c6 {[%clk 0:00:14]} 56. Kb7 {[%clk 0:00:03]}  Bb6 {[%clk 0:00:14]} 57. Ka6 {[%clk 0:00:04]}  Kb4 {[%clk 0:00:13]} 58. Kb7 {[%clk 0:00:05]}  c5 {[%clk 0:00:14]} 59. Kc6 {[%clk 0:00:05]}  c4 {[%clk 0:00:15]} 60. Kd7 {[%clk 0:00:06]}  c3 {[%clk 0:00:16]} 61. Kc8 {[%clk 0:00:06]}  c2 {[%clk 0:00:17]} 62. Kb7 {[%clk 0:00:07]}  c1=Q {[%clk 0:00:16]} 63. Ka6 {[%clk 0:00:08]}  Qa3+ {[%clk 0:00:16]} 64. Kb7 {[%clk 0:00:09]}  Qa7+ {[%clk 0:00:16]} 65. Kc8 {[%clk 0:00:10]}  Qc7# {[%clk 0:00:16]} 0-1


[Site "https://www.chess.com"]